fUSD/lending_fUSD_20251201
["ID","MTS","AMOUNT","RATE_DAILY","PERIOD"]
[395316553,1764615044207,-2750.0,0.00018656,2]
[395316554,1764615044217,-2750.0,0.00018711,2]
[395316555,1764615044226,-1000.0,0.0001876,2]
[395316556,1764615044236,-151.0,0.00018764,2]
[395316557,1764615044246,-642.94,0.00018764,2]
[395316558,1764615044256,-2750.0,0.00018766,2]
[395316559,1764615044266,-373.77116704,0.00018795,2]
[395316560,1764615044275,-150.74,0.000188,2]
[395316561,1764615044285,-2750.0,0.00018821,2]
[395316562,1764615044294,-600.0,0.00018854,2]
[395316563,1764615044303,-200.0,0.00018867,2]
[395316564,1764615044313,-1339.96710079,0.00018868,2]
[395316565,1764615044322,-737.63476882,0.00018868,2]
[395316566,1764615044331,-1500.0,0.00018868,2]
[395316567,1764615044341,-1500.0,0.00018868,2]
[395316568,1764615044351,-987.452036,0.00018868,2]
[395316569,1764615044362,-1505.52147503,0.00018868,2]
[395316570,1764615044371,-663.98817001,0.00018868,2]
[395316571,1764615044380,-1552.19905586,0.00018868,2]
[395316572,1764615044390,-441.13189507,0.00018868,2]
[395316573,1764615044399,-771.24315862,0.00018868,2]
[395316574,1764615044408,-1500.0,0.00018868,2]
[395316575,1764615044418,-1500.0,0.00018868,2]
[395316576,1764615044427,-1500.0,0.00018868,2]
[395316577,1764615044436,-1055.00053518,0.00018868,2]
[395316578,1764615044446,-1500.0,0.00018868,2]
[395316579,1764615044455,-1500.0,0.00018868,2]
[395316580,1764615044465,-1500.0,0.00018868,2]
[395316581,1764615044474,-1500.0,0.00018868,2]
[395316582,1764615044483,-1386.40188047,0.00018868,2]
[395316583,1764615044493,-1089.16818457,0.00018868,2]
[395316584,1764615044502,-4548.7588,0.000189,2]
[395316585,1764615044511,-8803.97728749,0.00019,2]
[395316586,1764615044520,-183.2567971,0.00019,2]
[395316587,1764615044530,-2500.0,0.00019164,2]
[395316588,1764615044539,-1508.61900502,0.00019164,2]
[395316589,1764615044548,-2500.0,0.00019164,2]
[395316590,1764615044558,-151.0,0.00019178,2]
[395316591,1764615044568,-153.78,0.00019186,2]
[395316592,1764615044578,-2000.0,0.000192,2]
[395316593,1764615044587,-317.88182115,0.00019312,2]
[395316594,1764615044597,-600.0,0.00019402,2]
[395316595,1764615044606,-500.0,0.00019416,2]
[395316596,1764615044615,-384.9832306,0.00019416,2]
[395316597,1764615044625,-503.6615541,0.00019416,2]
[395316598,1764615044635,-434.82176489,0.00019416,2]
[395316599,1764615044644,-945.30965623,0.00019416,2]
[395316600,1764615044654,-2000.0,0.00019416,2]
[395316601,1764615044665,-500.0,0.00019416,2]
[395316602,1764615044674,-972.98196458,0.00019416,2]
[395316603,1764615044684,-500.0,0.00019416,2]
[395316604,1764615044693,-1000.0,0.00019438,2]
[395316605,1764615044703,-322.6107,0.00019585,2]
[395316606,1764615044712,-151.0,0.00019585,2]
[395316607,1764615044722,-151.0,0.00019585,2]
[395316608,1764615044732,-267.46074303,0.00019585,2]
[395316609,1764615044741,-311.1,0.00019585,2]
[395316610,1764615044751,-2964.07027394,0.00019712,2]
[395316611,1764615044760,-3000.0,0.00019712,2]
[395316612,1764615044770,-604.07312412,0.00019714,2]
[395316613,1764615044779,-11884.0,0.00019726,2]
[395316614,1764615044790,-156.587,0.00019726,2]
[395316615,1764615044799,-600.0,0.0001995,2]
[395316616,1764615044809,-1030.94789734,0.00019964,2]
[395316617,1764615044818,-474.89,0.00019969,2]
[395316618,1764615044827,-224.04576721,0.0001998,2]
[395316619,1764615044837,-19043.63530165,0.00020033,2]
[395316620,1764615044847,-1000.0,0.00020116,2]
[395316621,1764615044856,-679.13,0.00020187,2]
[395316622,1764615044865,-153.78,0.00020252,2]
[395316623,1764615044875,-1000.0,0.0002026,2]
[395316624,1764615044885,-1175.73,0.00020359,2]
[395316625,1764615044897,-600.0,0.00020498,2]
[395316626,1764615044907,-174.2164736,0.00020714,2]
[395316627,1764615044915,-166.66,0.00020792,2]
[395316628,1764615044925,-1000.0,0.00020795,2]
[395316629,1764615044935,-334.5472959,0.00020954,2]
[395316630,1764615044945,-151.0,0.00020954,2]
[395316631,1764615044955,-277.35679052,0.00020954,2]
[395316632,1764615044965,-322.6107,0.00020954,2]
[395316633,1764615044975,-599.60298507,0.00020955,2]
[395316634,1764615044984,-600.0,0.00021045,2]
[395316635,1764615044993,-1170.42,0.00021251,2]
[395316636,1764615045003,-3442.0,0.00021318,2]
[395316637,1764615045011,-160.578,0.00021318,2]
[395316638,1764615045021,-617.633,0.00021318,2]
[395316639,1764615045030,-1603.0,0.00021318,2]
[395316640,1764615045040,-1263.732,0.00021318,2]
[395316641,1764615045050,-740.057,0.00021318,2]
[395316642,1764615045059,-6632.49,0.00021318,2]
[395316643,1764615045068,-252.0,0.00021318,2]
[395316644,1764615045078,-4704.0,0.00021318,2]
[395316645,1764615045087,-153.78,0.00021318,2]
[395316646,1764615045097,-166.66,0.00021479,2]
[395316647,1764615045106,-600.0,0.00021593,2]
[395316648,1764615045115,-5000.0,0.00021918,2]
[395316649,1764615045124,-150.0,0.00022,14]
[395316650,1764615045133,-600.0,0.00022141,5]
[395316651,1764615045143,-166.66,0.00022165,2]
[395316652,1764615045152,-1175.73,0.0002221,2]
[395316653,1764615045162,-157.64132353,0.00022301,2]
[395316654,1764615045171,-346.92554585,0.00022323,2]
[395316655,1764615045180,-287.61899177,0.00022323,2]
[395316656,1764615045190,-334.5472959,0.00022323,2]
[395316657,1764615045199,-153.78,0.00022384,2]
[395316658,1764615045208,-166.66,0.00022851,2]
[395316659,1764615045217,-2000.0,0.000229,2]
[395316660,1764615045226,-313.03,0.00023109,2]
[395316661,1764615045235,-230.59,0.0002352,2]
[395316662,1764615045244,-166.66,0.00023538,2]
[395316663,1764615045254,-276.1420041,0.00023692,2]
[395316664,1764615045263,-298.26089446,0.00023692,2]
[395316665,1764615045273,-346.92554585,0.00023692,2]
[395316666,1764615045282,-621.78829552,0.00023694,2]
[395316667,1764615045292,-166.66,0.00023762,30]
[395316668,1764615045301,-500.0,0.000238,2]
[395316669,1764615045311,-590.71993735,0.000238,2]
[395316670,1764615045320,-500.0,0.00023973,2]
[395316671,1764615045330,-500.0,0.00023973,2]
[395316672,1764615045339,-839.0,0.00023973,2]
[395316673,1764615045349,-150.0,0.00023973,2]
[395316674,1764615045359,-260.04113565,0.00023973,2]
[395316675,1764615045368,-150.0,0.00023973,2]
[395316676,1764615045377,-150.0,0.00023973,2]
[395316677,1764615045387,-500.0,0.00023973,2]
[395316679,1764615045397,-150.0,0.00023973,2]
[395316681,1764615045407,-150.0,0.00023973,2]
[395316683,1764615045416,-150.0,0.00023973,2]
[395316684,1764615045426,-150.0,0.00023973,2]
[395316685,1764615045436,-150.0,0.00023973,2]
[395316687,1764615045445,-200.0,0.00024013,2]
[395316688,1764615045454,-500.0,0.0002411,2]
[395316689,1764615045463,-500.0,0.0002411,2]
[395316690,1764615045472,-839.0,0.0002411,2]
[395316691,1764615045482,-150.0,0.0002411,2]
[395316692,1764615045491,-150.0,0.0002411,2]
[395316694,1764615045500,-500.0,0.0002411,2]
[395316696,1764615045510,-150.0,0.0002411,2]
[395316698,1764615045520,-150.0,0.0002411,2]
[395316699,1764615045529,-544.87415152,0.00024124,2]
[395316700,1764615045538,-151.0,0.00024169,7]
[395316701,1764615045548,-71466.5273785,0.00024172,2]
[395316702,1764615045557,-3778.9835318,0.00024172,2]
[395316703,1764615045568,-1065.0281103,0.00024172,2]
[395316704,1764615045577,-21498.43432517,0.00024172,2]
[395316705,1764615045620,-79913.40285173,0.00024172,2]
[395316706,1764615045632,-1802.82557788,0.00024172,2]
[395316707,1764615045643,-252.636388,0.00024172,2]
[395316708,1764615045658,-1330.08239876,0.00024172,2]
[395316709,1764615045670,-6980.06561632,0.00024172,2]
[395316710,1764615045765,-250.0,0.00021318,2]
[395316711,1764615045775,-225040.33984524,0.00024172,2]
[395316712,1764615045784,-166.66,0.00024224,2]
[395316713,1764615045793,-500.0,0.00024247,2]
[395316714,1764615045803,-500.0,0.00024247,2]
[395316715,1764615045812,-839.0,0.00024247,2]
[395316716,1764615045821,-150.0,0.00024247,2]
[395316717,1764615045831,-150.0,0.00024247,2]
[395316718,1764615045840,-500.0,0.00024247,2]
[395316719,1764615045850,-150.0,0.00024247,2]
[395316720,1764615045859,-150.0,0.00024247,2]
[395316721,1764615045869,-166.66,0.00024262,30]
[395316722,1764615045880,-500.0,0.00024384,2]
[395316724,1764615046188,-500.0,0.00024384,2]
[395316725,1764615046199,-839.0,0.00024384,2]
[395316727,1764615046209,-200.0,0.00024384,2]
[395316729,1764615046219,-150.0,0.00024384,2]
[395316730,1764615046228,-500.0,0.00024384,2]
[395316731,1764615046238,-150.0,0.00024384,2]
[395316732,1764615046248,-250.0,0.00024384,2]
[395316733,1764615046257,-1233.97646602,0.00024458,2]
[395316734,1764615046267,-500.0,0.00024521,2]
[395316735,1764615046276,-500.0,0.00024521,2]
[395316736,1764615046286,-839.0,0.00024521,2]
[395316737,1764615046295,-253.73471508,0.00024521,2]
[395316738,1764615046305,-264.62206405,0.00024521,2]
[395316739,1764615046314,-150.08,0.00024658,30]
[395316740,1764615046324,-1000.0,0.00024658,2]
[395316741,1764615046334,-305.0,0.00024658,2]
[395316742,1764615046343,-500.0,0.00024658,2]
[395316743,1764615046351,-839.0,0.00024658,2]
[395316744,1764615046360,-154.15729943,0.000247,2]
[395316745,1764615046370,-166.66,0.00024763,30]
[395316746,1764615046379,-500.0,0.00024795,2]
[395316747,1764615046388,-839.0,0.00024795,2]
[395316748,1764615046398,-1000.0,0.00024799,2]
[395316749,1764615046407,-713.59779201,0.00024799,2]
[395316750,1764615046416,-6460.38073,0.00024799,2]
[395316751,1764615046426,-252.35231124,0.000248,2]
[395316752,1764615046435,-151.0,0.000248,7]
[395316753,1764615046444,-151.0,0.000248,7]
[395316754,1764615046455,-786.53,0.000248,3]
[395316755,1764615046464,-151.0,0.000248,7]
[395316756,1764615046474,-151.0,0.000248,7]
[395316757,1764615046484,-151.0,0.000248,7]
[395316758,1764615046494,-151.0,0.000248,7]
[395316759,1764615046503,-244207.24950478,0.000248,3]
[395316760,1764615046519,-2888.48170126,0.000248,3]
[395316761,1764615046530,-281.6628012,0.000248,3]
[395316762,1764615046541,-7173.84954919,0.000248,3]
[395316763,1764615046553,-17642.05586194,0.000248,3]
[395316764,1764615046564,-2640.0,0.000248,3]
[395316765,1764615046676,-870.0,0.000248,3]
[395316766,1764615046687,-8034.96227502,0.000248,3]
[395316767,1764615046699,-521.11876182,0.000248,3]
[395316768,1764615046710,-339.2552879,0.000248,3]
[395316769,1764615046740,-621.631484,0.000248,3]
[395316770,1764615046751,-14738.85477312,0.000248,3]
[395316771,1764615046763,-18123.98328877,0.000248,3]
[395316772,1764615046772,-204.922917,0.000248,7]
[395316773,1764615046782,-204.922917,0.000248,7]
[395316774,1764615046791,-204.922917,0.000248,7]
[395316775,1764615046801,-204.922917,0.000248,7]
[395316776,1764615046810,-151.0,0.000248,7]
[395316777,1764615046820,-151.0,0.000248,7]
[395316778,1764615046829,-151.0,0.000248,7]
[395316779,1764615046839,-151.0,0.000248,7]
[395316780,1764615046849,-151.0,0.000248,7]
[395316781,1764615046858,-151.0,0.000248,7]
[395316782,1764615046868,-291.0,0.00024861,2]
[395316783,1764615046878,-151.0,0.00024897,7]
[395316784,1764615046894,-501.93,0.00024899,2]
[395316785,1764615046905,-501.93,0.00024899,2]
[395316786,1764615046916,-501.93,0.00024899,2]
[395316787,1764615046930,-151.0,0.000249,7]
[395316788,1764615046948,-151.0,0.000249,7]
[395316789,1764615046967,-1418.8,0.000249,7]
[395316790,1764615046987,-553498.87622963,0.000249,3]
[395316791,1764615047056,-6224.83730109,0.000249,3]
[395316792,1764615047067,-1006.70999954,0.000249,3]
[395316793,1764615047079,-1218.6,0.000249,3]
[395316794,1764615047091,-684.39999965,0.000249,3]
[395316795,1764615047113,-16769.58590309,0.000249,3]
[395316796,1764615047122,-839.0,0.00024932,2]
[395316797,1764615047132,-4796.52507576,0.00025,15]
[395316798,1764615047141,-309.29654756,0.00025061,2]
[395316799,1764615047151,-218.52715826,0.00025061,2]
[395316800,1764615047161,-839.0,0.00025069,2]
[395316801,1764615047171,-1000.0,0.000252,2]
[395316802,1764615047180,-839.0,0.00025206,2]
[395316803,1764615047191,-166.66,0.00025263,30]
[395316804,1764615047200,-291.0,0.00025272,2]
[395316805,1764615047209,-839.0,0.00025343,2]
[395316806,1764615047219,-839.0,0.0002548,2]
[395316807,1764615047229,-513.8672107,0.00025564,7]
[395316808,1764615047238,-839.0,0.00025617,2]
[395316809,1764615047247,-291.0,0.00025683,2]
[395316810,1764615047257,-839.0,0.00025754,2]
[395316811,1764615047266,-166.66,0.00025763,30]
[395316812,1764615047275,-839.0,0.00025891,2]
[395316813,1764615047285,-839.0,0.00026028,2]
[395316814,1764615047295,-291.0,0.00026094,2]
[395316815,1764615047304,-839.0,0.00026165,2]
[395316816,1764615047314,-166.66,0.00026263,30]
[395316817,1764615047323,-839.0,0.00026302,2]
[395316818,1764615047332,-320.74051982,0.0002643,2]
[395316819,1764615047342,-644.79446246,0.00026433,2]
[395316820,1764615047351,-839.0,0.00026439,2]
[395316821,1764615047361,-1418.8,0.000265,7]
[395316822,1764615047370,-291.0,0.00026505,2]
[395316823,1764615047380,-839.0,0.00026576,2]
[395316824,1764615047389,-2000.0,0.000266,2]
[395316825,1764615047399,-1000.0,0.000266,2]
[395316826,1764615047409,-679.13,0.00026676,2]
[395316827,1764615047418,-151.0,0.00026699,7]
[395316828,1764615047429,-151.0,0.00026699,7]
[395316829,1764615047438,-151.0,0.00026699,7]
[395316830,1764615047447,-151.0,0.00026699,7]
[395316831,1764615047457,-151.0,0.00026699,7]
[395316832,1764615047467,-244.941093,0.00026699,7]
[395316833,1764615047476,-151.0,0.00026699,7]
[395316834,1764615047486,-15173.81202935,0.00026699,2]
[395316885,1764616232528,-2637.667,0.00015148,2]
[395316886,1764616232538,-151.748,0.00015148,2]
[395316887,1764616232548,-214.0,0.00015148,2]
[395316888,1764616232558,-151.0,0.00015354,2]
[395316889,1764616232567,-150.0,0.00015354,2]
[395316890,1764616232576,-300.0,0.00015354,2]
[395316891,1764616232586,-1200.0,0.00015354,2]
[395316892,1764616232595,-300.0,0.00015354,2]
[395316893,1764616232605,-9072.338867,0.00015354,2]
[395316894,1764616232615,-1200.0,0.00015355,2]
[395316895,1764616232624,-195.96729119,0.00015355,2]
[395316896,1764616232634,-500.0,0.00015355,2]
[395316897,1764616232643,-500.0,0.00015355,2]
[395316898,1764616232653,-500.0,0.00015355,2]
[395316899,1764616232662,-500.0,0.00015355,2]
[395316900,1764616232672,-500.0,0.00015355,2]
[395316901,1764616232682,-500.0,0.00015355,2]
[395316902,1764616232691,-500.0,0.00015355,2]
[395316903,1764616232700,-500.0,0.00015355,2]
[395316904,1764616232710,-500.0,0.00015355,2]
[395316905,1764616232720,-500.0,0.00015355,2]
[395316906,1764616232729,-500.0,0.00015355,2]
[395316907,1764616232739,-500.0,0.00015355,2]
[395316908,1764616232749,-500.0,0.00015355,2]
[395316909,1764616232758,-500.0,0.00015355,2]
[395316910,1764616232768,-500.0,0.00015355,2]
[395316911,1764616232777,-500.0,0.00015355,2]
[395316912,1764616232787,-500.0,0.00015355,2]
[395316913,1764616232796,-500.0,0.00015355,2]
[395316914,1764616232806,-378.91897821,0.00015355,2]
[395316915,1764616232815,-500.0,0.00015355,2]
[395316916,1764616232824,-500.0,0.00015355,2]
[395316917,1764616232834,-326.26035923,0.00015355,2]
[395316918,1764616232844,-500.0,0.00015355,2]
[395316919,1764616232853,-500.0,0.00015355,2]
[395316920,1764616232863,-500.0,0.00015355,2]
[395316921,1764616232872,-500.0,0.00015355,2]
[395316922,1764616232881,-500.0,0.00015355,2]
[395316923,1764616232891,-500.0,0.00015355,2]
[395316924,1764616232900,-500.0,0.00015355,2]
[395316925,1764616232909,-500.0,0.00015355,2]
[395316926,1764616232918,-500.0,0.00015355,2]
[395316927,1764616232927,-500.0,0.00015355,2]
[395316928,1764616232936,-500.0,0.00015355,2]
[395316929,1764616232945,-500.0,0.00015355,2]
[395316930,1764616232955,-500.0,0.00015355,2]
[395316931,1764616232964,-500.0,0.00015355,2]
[395316932,1764616232973,-500.0,0.00015355,2]
[395316933,1764616232983,-500.0,0.00015355,2]
[395316934,1764616232993,-500.0,0.00015355,2]
[395316935,1764616233002,-500.0,0.00015355,2]
[395316936,1764616233011,-500.0,0.00015355,2]
[395316937,1764616233020,-500.0,0.00015355,2]
[395316938,1764616233029,-500.0,0.00015355,2]
[395316939,1764616233039,-500.0,0.00015355,2]
[395316940,1764616233048,-500.0,0.00015355,2]
[395316941,1764616233058,-500.0,0.00015355,2]
[395316942,1764616233068,-500.0,0.00015355,2]
[395316943,1764616233077,-500.0,0.00015355,2]
[395316944,1764616233086,-500.0,0.00015355,2]
[395316945,1764616233096,-500.0,0.00015355,2]
[395316946,1764616233106,-500.0,0.00015355,2]
[395316947,1764616233115,-500.0,0.00015355,2]
[395316948,1764616233124,-500.0,0.00015355,2]
[395316949,1764616233134,-500.0,0.00015355,2]
[395316950,1764616233144,-500.0,0.00015355,2]
[395316951,1764616233153,-621.54814716,0.00015355,2]
[395316952,1764616233163,-500.0,0.00015355,2]
[395316953,1764616233172,-500.0,0.00015355,2]
[395316954,1764616233182,-500.0,0.00015355,2]
[395316955,1764616233191,-500.0,0.00015355,2]
[395316956,1764616233201,-500.0,0.00015355,2]
[395316957,1764616233211,-200.0,0.00015355,2]
[395316958,1764616233221,-500.0,0.00015355,2]
[395316959,1764616233230,-500.0,0.00015355,2]
[395316960,1764616233242,-1000.0,0.00015357,2]
[395316961,1764616233253,-1194.7276,0.00015357,2]
[395316962,1764616233263,-4034.4208,0.00015357,2]
[395316963,1764616233272,-8077.21403921,0.00015357,2]
[395316964,1764616233289,-556.64674786,0.00015357,2]
[395316965,1764616233300,-1238.93284746,0.00015357,2]
[395316966,1764616233311,-2740.89999996,0.00015357,2]
[395316967,1764616233325,-1060.77904205,0.00015357,2]
[395316968,1764616233346,-13037.86848459,0.00015357,2]
[395316969,1764616233360,-890.98812869,0.00015357,2]
[395316970,1764616233380,-5857.18947571,0.00015357,2]
[395316971,1764616233392,-346.84803172,0.00015357,2]
[395316972,1764616233403,-298.4903234,0.00015357,2]
[395316973,1764616233442,-1800.0,0.00015357,2]
[395316974,1764616233454,-344.17171453,0.00015357,2]
[395316975,1764616233466,-301.0,0.00015357,2]
[395316976,1764616233477,-865.73851258,0.00015357,2]
[395316977,1764616233522,-480.71,0.00015357,2]
[395316980,1764616237930,-1663.68431195,0.00015357,2]
[395316981,1764616237942,-3192.9,0.00015357,2]
[395316982,1764616237975,-510.0107198,0.00015357,2]
[395316996,1764616239936,-4181.99995258,0.00015357,2]
[395316997,1764616239947,-1740.23328001,0.00015357,2]
[395316998,1764616239991,-2615.98241607,0.00015357,2]
[395316999,1764616240153,-1830.27895656,0.00015357,2]
[395317000,1764616240164,-765.44534152,0.00015357,2]
[395317001,1764616240557,-2333.0,0.00015357,2]
[395317002,1764616240579,-2240.21046408,0.00015357,2]
[395317003,1764616240590,-1404.0,0.00015357,2]
[395317004,1764616240602,-1726.20261433,0.00015357,2]
[395317005,1764616240618,-4815.55,0.00015357,2]
[395317006,1764616240631,-693083.02459534,0.00015357,2]
[395317007,1764616240640,-13537.49352252,0.00015357,2]
[395317008,1764616240652,-7876.37237562,0.00015357,2]
[395317009,1764616240662,-959.07,0.00015363,2]
[395317010,1764616240671,-699.47971493,0.00015363,2]
[395317011,1764616240680,-8272.86942617,0.00015365,2]
[395317012,1764616240691,-500.0,0.00015447,2]
[395317013,1764616240700,-222.4738,0.00015447,2]
[395317014,1764616240711,-151.0,0.00015447,2]
[395317015,1764616240722,-151.0,0.00015447,2]
[395317016,1764616240732,-151.0,0.00015447,2]
[395317017,1764616240743,-151.0,0.00015447,2]
[395317018,1764616240752,-151.0,0.00015447,2]
[395317019,1764616240762,-500.0,0.00015447,2]
[395317020,1764616240773,-151.0,0.00015447,2]
[395317021,1764616240783,-151.0,0.00015447,2]
[395317022,1764616240792,-151.0,0.00015447,2]
[395317023,1764616240802,-151.0,0.00015447,2]
[395317024,1764616240812,-151.0,0.00015447,2]
[395317025,1764616240822,-151.0,0.00015447,2]
[395317026,1764616240832,-151.0,0.00015447,2]
[395317027,1764616240842,-151.0,0.00015447,2]
[395317028,1764616240851,-151.0,0.00015447,2]
[395317029,1764616240861,-188.91,0.00015456,2]
[395317030,1764616240873,-500.0,0.00015456,2]
[395317031,1764616240883,-600.0,0.00015457,2]
[395317032,1764616240893,-1000.0,0.00015466,2]
[395317033,1764616240902,-268.7454,0.00015466,2]
[395317034,1764616240911,-500.0,0.00015565,2]
[395317035,1764616240921,-500.0,0.00015565,2]
[395317036,1764616240931,-959.07,0.00015637,2]
[395317037,1764616240941,-400.41074393,0.000159,2]
[395317038,1764616240950,-400.41074393,0.000159,2]
[395317039,1764616240961,-959.07,0.00015911,2]
[395317040,1764616240971,-10000.0,0.00016,5]
[395317041,1764616240981,-600.0,0.00016005,2]
[395317042,1764616240991,-959.07,0.00016185,2]
[395317043,1764616241001,-168.0,0.00016436,2]
[395317044,1764616241011,-959.07,0.00016459,2]
[395317045,1764616241020,-168.0,0.00016471,2]
[395317046,1764616241029,-168.0,0.00016484,2]
[395317047,1764616241039,-168.0,0.00016516,2]
[395317048,1764616241048,-600.0,0.00016553,2]
[395317049,1764616241059,-168.0,0.00016631,2]
[395317050,1764616241069,-339.82955746,0.00016663,2]
[395317051,1764616241079,-168.0,0.00016697,2]
[395317052,1764616241089,-959.07,0.00016733,2]
[395317053,1764616241099,-156.0,0.00016798,2]
[395317054,1764616241108,-1680.0,0.00016883,2]
[395317055,1764616241123,-295.21198684,0.00016973,2]
[395317056,1764616241133,-500.0,0.00016973,2]
[395317057,1764616241144,-500.0,0.00016973,2]
[395317058,1764616241154,-500.0,0.00016973,2]
[395317059,1764616241164,-298.0023857,0.00016973,2]
[395317060,1764616241175,-500.0,0.00016973,2]
[395317061,1764616241186,-500.0,0.00016973,2]
[395317062,1764616241196,-366.67180907,0.00016973,2]
[395317063,1764616241206,-500.0,0.00016973,2]
[395317064,1764616241217,-500.0,0.00016973,2]
[395317065,1764616241228,-500.0,0.00016973,2]
[395317066,1764616241239,-500.0,0.00016973,2]
[395317067,1764616241253,-500.0,0.00016973,2]
[395317068,1764616241263,-500.0,0.00016973,2]
[395317069,1764616241274,-500.0,0.00016973,2]
[395317070,1764616241284,-500.0,0.00016973,2]
[395317071,1764616241296,-500.0,0.00016973,2]
[395317072,1764616241306,-295.34585817,0.00016973,2]
[395317073,1764616241316,-250.0,0.00017,2]
[395317074,1764616241326,-959.07,0.00017007,2]
[395317075,1764616241335,-604.07312412,0.00017008,2]
[395317076,1764616241345,-245.0,0.00017027,2]
[395317077,1764616241355,-168.0,0.00017065,2]
[395317078,1764616241364,-600.0,0.00017101,2]
[395317079,1764616241378,-168.0,0.0001718,2]
[395317080,1764616241387,-3498.38492083,0.0001728,2]
[395317081,1764616241397,-959.07,0.00017281,2]
[395317082,1764616241407,-168.0,0.00017295,2]
[395317083,1764616241416,-168.0,0.00017396,2]
[395317084,1764616241426,-168.0,0.00017413,2]
[395317085,1764616241435,-168.0,0.0001751,2]
[395317086,1764616241446,-1000.0,0.00017521,2]
[395317087,1764616241456,-1000.0,0.00017521,2]
[395317088,1764616241466,-1000.0,0.00017521,2]
[395317089,1764616241475,-1000.0,0.00017521,2]
[395317090,1764616241485,-523.07376951,0.00017521,2]
[395317091,1764616241494,-801.31348065,0.00017521,2]
[395317092,1764616241504,-1000.0,0.00017521,2]
[395317093,1764616241513,-1000.0,0.00017521,2]
[395317094,1764616241522,-1000.0,0.00017521,2]
[395317095,1764616241532,-1000.0,0.00017521,2]
[395317096,1764616241541,-1000.0,0.00017521,2]
[395317097,1764616241550,-1138.46662125,0.00017521,2]
[395317098,1764616241559,-1000.0,0.00017521,2]
[395317099,1764616241568,-959.07,0.00017555,2]
[395317100,1764616241578,-357.93,0.00017557,2]
[395317101,1764616241588,-600.0,0.00017648,2]
[395317102,1764616241597,-168.0,0.00017704,2]
[395317103,1764616241607,-168.0,0.00017754,2]
[395317104,1764616241617,-500.0,0.00017773,2]
[395317105,1764616241630,-500.0,0.00017773,2]
[395317106,1764616241640,-500.0,0.00017773,2]
[395317107,1764616241650,-500.0,0.00017773,2]
[395317108,1764616241660,-500.0,0.00017773,2]
[395317109,1764616241670,-500.0,0.00017773,2]
[395317110,1764616241679,-500.0,0.00017773,2]
[395317111,1764616241690,-160.09973475,0.00017773,2]
[395317112,1764616241700,-500.0,0.00017773,2]
[395317113,1764616241710,-500.0,0.00017773,2]
[395317114,1764616241720,-500.0,0.00017773,2]
[395317115,1764616241730,-500.0,0.00017773,2]
[395317116,1764616241740,-500.0,0.00017773,2]
[395317117,1764616241749,-500.0,0.00017773,2]
[395317118,1764616241759,-500.0,0.00017773,2]
[395317119,1764616241769,-160.09780403,0.00017773,2]
[395317120,1764616241778,-500.0,0.00017773,2]
[395317121,1764616241788,-502.39177324,0.00017773,2]
[395317122,1764616241798,-500.0,0.00017773,2]
[395317123,1764616241819,-329.72446081,0.00017773,2]
[395317124,1764616241829,-500.0,0.00017773,2]
[395317125,1764616241839,-500.0,0.00017773,2]
[395317126,1764616241848,-160.09574989,0.00017773,2]
[395317127,1764616241858,-500.0,0.00017773,2]